Workbook

Sheet व्यय
A1: [ईवेंट का नाम] के लिए ईवेंट बजट
A2: > व्यय
F4: अनुमानित | G4: वास्तविक
A5: कुल व्यय | F5: =SUM(B12,B20,B26,B33,F12,F20,F25) -> रु 1,145.00 | G5: =SUM(C12,C20,C26,C33,G12,G20,G25) -> रु 395.00
A7: स्थल | B7: अनुमानित | C7: वास्तविक | E7: जलपान | F7: अनुमानित | G7: वास्तविक
A8: कमरे और हॉल का शुल्क | B8: रु 500.00 | C8: रु 250.00 | E8: खाना
A9: स्थल कर्मचारी | B9: रु 400.00 | C9: रु 50.00 | E9: पेय
A10: साजोसामान | E10: लिनेन
A11: टेबल और कुर्सियाँ | E11: स्टाफ और ग्रेच्युटीज़
A12: योग | B12: =SUBTOTAL(109,B8:B9) -> रु 900.00 | C12: =SUBTOTAL(109,C8:C9) -> रु 300.00 | E12: योग | F12: =SUBTOTAL(109,F8:F11) -> रु 0.00 | G12: =SUBTOTAL(109,G8:G11) -> रु 0.00
A14: सजावट | B14: अनुमानित | C14: वास्तविक | E14: कार्यक्रम | F14: अनुमानित | G14: वास्तविक
A15: फूल | B15: रु 200.00 | C15: रु 50.00 | E15: प्रस्तोता
A16: मोमबत्तियाँ | E16: वक्ता
A17: प्रकाश | E17: यात्रा
A18: गुब्बारे | E18: होटल
A19: काग़ज़ का सामान | E19: अन्य
A20: योग | B20: =SUBTOTAL(109,B15:B19) -> रु 200.00 | C20: =SUBTOTAL(109,C15:C19) -> रु 50.00 | E20: योग | F20: =SUBTOTAL(109,F15:F19) -> रु 0.00 | G20: =SUBTOTAL(109,G15:G19) -> रु 0.00
A22: प्रचार | B22: अनुमानित | C22: वास्तविक | E22: पुरस्कार | F22: अनुमानित | G22: वास्तविक
A23: ग्राफ़िक संबंधी कार्य | B23: रु 45.00 | C23: रु 45.00 | E23: रिबन/प्लाक/ट्रॉफ़ी
A24: फ़ोटोकॉपी/मुद्रण | E24: उपहार
A25: डाक शुल्क | E25: योग | F25: =SUBTOTAL(109,F23:F24) -> रु 0.00 | G25: =SUBTOTAL(109,G23:G24) -> रु 0.00
A26: योग | B26: =SUBTOTAL(109,B23:B25) -> रु 45.00 | C26: =SUBTOTAL(109,C23:C25) -> रु 45.00
A28: विविध | B28: अनुमानित | C28: वास्तविक
A29: टेलीफ़ोन
A30: परिवहन
A31: लेखन सामग्री
A32: फ़ैक्स सेवाएँ
A33: योग | B33: =SUBTOTAL(109,B29:B32) -> रु 0.00 | C33: =SUBTOTAL(109,C29:C32) -> रु 0.00

Sheet आय
A1: [ईवेंट का नाम] के लिए ईवेंट बजट
A2: > आय
E4: अनुमानित | F4: वास्तविक
A5: कुल आय | E5: =SUM(E12,E19,E26,E34) -> रु 1,936.00 | F5: =SUM(F12,F19,F26,F34) -> रु 1,831.00
A7: प्रवेश
A8: अनुमानित | B8: वास्तविक | E8: अनुमानित | F8: वास्तविक
A9: 300 | B9: 278 | C9: वयस्क @ | D9: रु 5.00 | E9: =A9*D9 -> रु 1,500.00 | F9: =B9*D9 -> रु 1,390.00
A10: 197 | B10: 195 | C10: बच्चे @ | D10: रु 2.00 | E10: =A10*D10 -> रु 394.00 | F10: =B10*D10 -> रु 390.00
A11: 42 | B11: 51 | C11: अन्य @ | D11: रु 1.00 | E11: =A11*D11 -> रु 42.00 | F11: =B11*D11 -> रु 51.00
E12: =SUM(E9:E11) -> रु 1,936.00 | F12: =SUM(F9:F11) -> रु 1,831.00
A14: कार्यक्रम में विज्ञापन
A15: अनुमानित | B15: वास्तविक | E15: अनुमानित | F15: वास्तविक
C16: कवर @ | E16: =A16*D16 -> रु 0.00 | F16: =B16*D16 -> रु 0.00
C17: आधा-पृष्ठ @ | E17: =A17*D17 -> रु 0.00 | F17: =B17*D17 -> रु 0.00
C18: चौथाई-पृष्ठ @ | E18: =A18*D18 -> रु 0.00 | F18: =B18*D18 -> रु 0.00
E19: =SUM(E16:E18) -> रु 0.00 | F19: =SUM(F16:F18) -> रु 0.00
A21: प्रदर्शक/विक्रेता
A22: अनुमानित | B22: वास्तविक | E22: अनुमानित | F22: वास्तविक
C23: बड़े बूथ @ | E23: =A23*D23 -> रु 0.00 | F23: =B23*D23 -> रु 0.00
C24: मध्यम बूथ @ | E24: =A24*D24 -> रु 0.00 | F24: =B24*D24 -> रु 0.00
C25: छोटे बूथ @ | E25: =A25*D25 -> रु 0.00 | F25: =B25*D25 -> रु 0.00
E26: =SUM(E23:E25) -> रु 0.00 | F26: =SUM(F23:F25) -> रु 0.00
A28: आइटम्स की बिक्री
A29: अनुमानित | B29: वास्तविक | E29: अनुमानित | F29: वास्तविक
C30: आइटम @ | E30: =A30*D30 -> रु 0.00 | F30: =B30*D30 -> रु 0.00
C31: आइटम @ | E31: =A31*D31 -> रु 0.00 | F31: =B31*D31 -> रु 0.00
C32: आइटम @ | E32: =A32*D32 -> रु 0.00 | F32: =B32*D32 -> रु 0.00
C33: आइटम @ | E33: =A33*D33 -> रु 0.00 | F33: =B33*D33 -> रु 0.00
E34: =SUM(E30:E33) -> रु 0.00 | F34: =SUM(F30:F33) -> रु 0.00

Sheet सारांश
A1: [ईवेंट का नाम] के लिए ईवेंट बजट
A2: >लाभ - हानि सारांश
B4: अनुमानित | C4: वास्तविक
A5: कुल आय | B5: =[1]Income!E5 -> रु 1,936.00 | C5: =[1]Income!F5 -> रु 1,831.00
A6: कुल व्यय | B6: =[1]Expenses!F5 -> रु 1,145.00 | C6: =[1]Expenses!G5 -> रु 395.00
A7: कुल लाभ (या हानि) | B7: =B5-B6 -> रु 791.00 | C7: =C5-C6 -> रु 1,436.00
